bitfinex/quotes_ETHUSD_20250326
["timestamp","ask_amount","ask_price","bid_price","bid_amount"]
[1743033131989,8.31882753,2013.6,2013.5,14.5]
[1743033132930,0.8008,2013.5,2013.0,1.8815278]
[1743033133220,4.96795,2012.9,2012.6,0.7678]
[1743033133418,8.32086753,2012.8,2012.6,15.50383678]
[1743033133592,8.32105753,2012.7,2012.6,14.5]
[1743033133787,3.35260753,2012.8,2012.6,14.5]
[1743033134186,8.32089753,2012.8,2012.6,14.5]
[1743033134386,8.32105753,2012.7,2012.6,14.5]
[1743033134914,4.96903,2012.5,2012.2,6.0098]
[1743033135120,4.96903,2012.5,2012.2,7.107796]
[1743033135322,8.32150753,2012.6,2012.3,14.5]
[1743033136090,13.29035753,2012.6,2012.3,14.5]
[1743033136657,8.32145753,2012.6,2012.3,14.5]
[1743033137020,4.96885,2012.6,2012.3,14.5]
[1743033137224,4.96885,2012.6,2012.3,17.3141416]
[1743033137517,13.29031753,2012.6,2012.3,17.3141416]
[1743033137722,4.96895,2012.5,2012.3,17.3141416]
[1743033138222,3.35260753,2012.4,2012.3,14.5]
[1743033138539,8.32179753,2012.4,2012.3,14.5]
[1743033139520,4.96919,2012.4,2012.3,14.5]
[1743033141399,4.96919,2012.4,2011.8,0.7658]
[1743033141400,8.32179753,2012.4,2011.8,0.7658]
[1743033141598,4.96952,2012.3,2011.8,0.7658]
[1743033141840,4.96972,2012.2,2011.8,0.7658]
[1743033142007,4.96972,2012.2,2011.9,15.05]
[1743033144150,6.8581,2012.6,2011.9,15.05]
[1743033144335,6.06,2012.6,2012.1,14.63118753]
[1743033144629,4.96879,2012.6,2012.3,0.55]
[1743033144939,4.96879,2012.6,2012.4,14.5]
[1743033145228,9.93719,2012.7,2012.4,14.5]
[1743033145434,4.96852,2012.7,2012.4,14.5]
[1743033145602,4.9687,2012.6,2012.4,14.5]
[1743033146034,13.29020753,2012.6,2012.4,14.5]
[1743033146336,8.32130753,2012.6,2012.4,14.5]
[1743033148517,8.32130753,2012.6,2012.3,0.55]
[1743033148718,8.32130753,2012.6,2012.3,1.42661021]
[1743033149115,8.32130753,2012.6,2012.3,15.92661021]
[1743033149706,3.35260753,2012.6,2012.3,15.92661021]
[1743033149937,6.06,2012.9,2012.5,0.55]
[1743033150245,7.96792,2013.0,2012.5,10.48764]
[1743033150543,7.96792,2013.0,2012.7,0.55]
[1743033150738,4.96792,2013.0,2012.7,15.05]
[1743033151107,9.93579,2013.0,2012.7,15.05]
[1743033151814,4.96787,2013.0,2012.7,15.05]
[1743033152052,4.96787,2013.0,2012.7,17.6622733]
[1743033153243,4.96787,2013.0,2012.8,0.8282]
[1743033153541,8.31981753,2013.2,2012.9,0.55]
[1743033153742,4.96746,2013.1,2012.9,0.55]
[1743033153930,3.35260753,2013.0,2012.9,0.55]
[1743033154442,3.35260753,2013.0,2012.9,15.05]
[1743033154817,4.96831,2012.8,2012.5,0.98356574]
[1743033155018,8.32105753,2012.7,2012.6,0.55]
[1743033155428,8.32105753,2012.7,2012.5,0.55]
[1743033155950,4.96831,2012.8,2012.5,0.55]
[1743033155951,8.32091753,2012.8,2012.5,0.55]
[1743033156357,4.96831,2012.8,2012.5,0.55]
[1743033157353,8.32059753,2012.9,2012.5,5.5189]
[1743033157553,13.28870753,2012.9,2012.5,8.28601282]
[1743033157934,4.9682,2012.8,2012.5,8.28601282]
[1743033158242,4.9682,2012.8,2012.5,5.5189]
[1743033158433,4.9682,2012.8,2012.6,14.5]
[1743033159764,13.28874753,2012.9,2012.6,14.5]
[1743033160125,4.96822,2012.8,2012.6,14.5]
[1743033160422,8.32068753,2012.9,2012.6,14.5]
[1743033161564,13.28879753,2012.9,2012.6,14.5]
[1743033161787,0.8024,2013.0,2012.7,5.51824]
[1743033161981,0.8024,2013.0,2012.6,17.1794588]
[1743033161982,8.32068753,2012.9,2012.6,17.1794588]
[1743033162126,4.96746,2013.1,2012.7,5.51845]
[1743033162326,3.35260753,2013.0,2012.7,5.51845]
[1743033162973,3.35260753,2012.8,2012.7,0.55]
[1743033164480,3.35260753,2013.1,2012.8,4.96808]
[1743033164682,3.35260753,2013.1,2012.8,9.93616]
[1743033164863,3.35260753,2013.1,2012.9,4.96782]
[1743033165369,3.35260753,2013.2,2013.0,4.96754]
[1743033165678,3.35260753,2013.2,2013.1,4.96746]
[1743033168535,0.7811,2013.5,2013.4,4.96672]
[1743033168836,3.35260753,2013.6,2013.5,4.96647]
[1743033170053,3.35260753,2013.6,2013.3,5.51696]
[1743033170258,3.35260753,2013.4,2013.3,5.51696]
[1743033170972,3.35260753,2013.6,2013.4,4.96659]
[1743033171155,3.35260753,2013.6,2013.4,4.96657]
[1743033171364,3.35260753,2013.8,2013.5,0.8039]
[1743033171564,3.35260753,2013.8,2013.5,4.96639]
[1743033171774,3.35260753,2013.6,2013.5,4.96639]
[1743033172381,3.0,2013.8,2013.6,4.96616]
[1743033172583,3.35260753,2013.8,2013.6,4.96616]
[1743033173059,3.35260753,2013.8,2013.6,9.93222]
[1743033173265,5.78263,2014.0,2013.7,4.96598]
[1743033173462,3.35260753,2013.8,2013.7,4.96598]
[1743033174077,3.35260753,2013.8,2013.6,5.959372]
[1743033176691,3.35260753,2013.8,2013.6,10.925472]
[1743033176893,3.35260753,2013.8,2013.6,10.925382]
[1743033177078,3.35260753,2013.8,2013.6,5.959282]
[1743033177391,3.35260753,2013.8,2013.6,4.96606]
[1743033177691,3.35260753,2013.7,2013.6,4.96606]
[1743033178588,3.35260753,2013.8,2013.7,4.96597]
[1743033179690,3.35260753,2013.8,2013.6,4.96606]
[1743033179992,3.35260753,2013.7,2013.5,4.96645]
[1743033180190,3.35260753,2013.6,2013.5,5.51638]
[1743033181170,3.35260753,2013.6,2013.4,9.93322]
[1743033181370,3.8173,2014.0,2013.5,0.55]
[1743033181730,6.35260753,2014.0,2013.7,10.68267]
[1743033182191,6.35260753,2014.0,2013.7,10.68266]
[1743033182368,6.35260753,2014.0,2013.7,5.71681]
[1743033182569,6.35260753,2014.0,2013.8,4.9657]
[1743033182776,6.35260753,2014.0,2013.7,6.840113]
[1743033183170,6.35260753,2014.0,2013.7,11.805993]
[1743033183369,6.35260753,2014.0,2013.7,6.840113]
[1743033183565,6.35260753,2014.0,2013.7,11.805943]
[1743033183756,6.35260753,2014.0,2013.7,6.840113]
[1743033184192,6.35260753,2014.0,2013.7,11.805963]
[1743033184490,3.0,2014.0,2013.7,6.840113]
[1743033184694,11.31784753,2014.0,2013.7,6.840113]
[1743033185770,3.0,2014.0,2013.7,11.806003]
[1743033185974,6.35260753,2014.0,2013.7,6.840113]
[1743033186376,11.31787753,2014.0,2013.7,6.840113]
[1743033186576,3.35260753,2013.9,2013.6,4.9662]
[1743033186976,3.35260753,2013.9,2013.6,9.93227]
[1743033187198,3.35260753,2013.9,2013.7,4.96589]
[1743033188479,3.35260753,2013.9,2013.6,4.96607]
[1743033188679,8.31817753,2013.9,2013.6,8.05219]
[1743033188907,9.07737753,2013.9,2013.5,11.28946]
[1743033189074,9.07737753,2013.9,2013.6,4.96619]
[1743033189275,3.35260753,2013.9,2013.6,4.96619]
[1743033189499,3.35260753,2013.9,2013.6,4.96612]
[1743033190382,3.35260753,2013.9,2013.8,4.96573]
[1743033190584,3.35260753,2013.9,2013.8,0.993164]
[1743033190821,3.35260753,2013.9,2013.7,4.96591]
[1743033191111,3.35260753,2014.0,2013.7,4.96591]
[1743033191491,8.31785753,2014.0,2013.7,4.96591]
[1743033193498,3.35260753,2013.8,2013.6,4.96612]
[1743033194012,4.96651,2013.5,2013.3,1.00243317]
[1743033194314,3.35260753,2013.4,2013.1,5.75432]
[1743033194513,4.15210753,2013.4,2013.0,4.96768]
[1743033194820,3.35260753,2013.2,2013.1,0.55]
[1743033194986,5.76635,2013.4,2013.2,4.96714]
[1743033194987,3.35260753,2013.4,2013.2,4.96714]
[1743033195379,3.35260753,2013.4,2013.1,4.96726]
[1743033195585,8.31937753,2013.4,2013.1,4.96726]
[1743033196910,3.35260753,2013.4,2013.1,9.93459]
[1743033197117,3.35260753,2013.4,2013.1,11.66428127]
[1743033197415,3.35260753,2013.4,2013.1,6.69695127]
[1743033197713,8.31935753,2013.4,2013.1,6.69695127]
[1743033200688,8.31935753,2013.4,2013.1,1.72969127]
[1743033200887,8.31935753,2013.4,2013.1,5.51739]
[1743033204017,8.31935753,2013.4,2013.1,0.55]
[1743033204808,8.31935753,2013.4,2013.1,5.51741]
[1743033205117,8.31935753,2013.4,2013.1,0.55]
[1743033205417,8.31935753,2013.4,2013.1,5.51745]
[1743033205615,3.35260753,2013.4,2013.1,12.21373894]
[1743033205804,8.31932753,2013.4,2013.1,7.24628894]
[1743033206737,3.35260753,2013.4,2013.2,4.96719]
[1743033206902,3.35260753,2013.4,2013.1,7.24628894]
[1743033208041,8.31934753,2013.4,2013.1,7.24628894]
[1743033208322,3.35260753,2013.4,2013.1,7.24628894]
[1743033209130,3.35260753,2013.4,2013.1,12.21361894]
[1743033209627,3.35260753,2013.4,2013.1,7.24628894]
[1743033210044,3.35260753,2013.4,2013.2,4.96709]
[1743033210203,6.06,2013.7,2013.3,1.3194]
[1743033210403,6.06,2013.7,2013.6,4.96622]
[1743033210616,3.35260753,2013.9,2013.6,4.96622]
[1743033210617,3.35260753,2013.9,2013.6,9.93231]
[1743033211231,3.35260753,2013.8,2013.6,9.93231]
[1743033211432,3.35260753,2013.8,2013.6,4.96609]
[1743033211637,3.35260753,2013.7,2013.5,4.96643]
[1743033212147,3.35260753,2013.7,2013.5,9.93278]
[1743033212633,3.35260753,2013.7,2013.6,4.96622]
[1743033213144,4.96556,2013.9,2013.6,4.96622]
[1743033213326,3.35260753,2013.8,2013.7,4.96596]
[1743033213706,3.35260753,2013.8,2013.6,4.96622]
[1743033214416,3.35260753,2013.8,2013.6,4.96609]
[1743033215337,3.35260753,2013.8,2013.5,9.93282]
[1743033215504,3.35260753,2013.8,2013.5,9.93277]
[1743033215709,3.35260753,2013.8,2013.5,12.60547336]
[1743033215902,3.35260753,2013.8,2013.6,4.96614]
[1743033217348,5.73279,2014.0,2013.6,9.93229]
[1743033217505,3.35260753,2013.9,2013.6,4.96614]
[1743033217822,8.31813753,2013.9,2013.6,4.96614]
[1743033218533,3.35260753,2013.9,2013.6,9.93225]
[1743033218705,3.35260753,2013.9,2013.6,6.44933827]
[1743033219162,3.35260753,2013.9,2013.7,4.96575]
[1743033219353,4.12010753,2014.0,2013.7,4.96575]
[1743033219710,4.12010753,2014.0,2013.7,9.93159]
[1743033221132,3.35260753,2013.9,2013.7,4.96575]
[1743033221331,3.35260753,2013.8,2013.7,4.96575]
[1743033221839,3.35260753,2013.9,2013.7,4.96575]
[1743033222044,3.35260753,2013.9,2013.7,9.93157]
[1743033222246,3.35260753,2013.9,2013.8,4.96573]
[1743033223250,3.35260753,2013.9,2013.7,9.9316]
[1743033223422,3.35260753,2013.9,2013.7,4.96575]
[1743033224151,3.35260753,2013.8,2013.7,4.96575]
[1743033228133,3.35260753,2013.8,2013.7,19.46575]
[1743033232056,3.35260753,2013.8,2013.7,14.5]
[1743033233961,3.35260753,2013.8,2013.4,6.72577356]
[1743033234167,3.35260753,2013.5,2013.2,6.95943789]
[1743033234459,3.35260753,2013.3,2013.2,20.78797]
[1743033234638,3.35260753,2013.3,2013.2,20.23797]
[1743033234957,3.35260753,2013.3,2013.2,20.78797]
[1743033235831,3.35260753,2013.3,2013.2,24.31551744]
[1743033236344,3.35260753,2013.4,2013.3,5.51686]
[1743033240061,3.35260753,2013.4,2013.3,20.01686]
[1743033240556,3.35260753,2013.4,2013.3,20.47709596]
[1743033242659,3.35260753,2013.4,2013.3,15.51023596]
[1743033242965,3.35260753,2013.4,2013.3,20.47719596]
[1743033243170,3.35260753,2013.4,2013.3,15.51023596]
[1743033243362,3.35260753,2013.4,2013.3,14.96023596]
[1743033243658,3.35260753,2013.4,2013.3,0.46023596]
[1743033244165,3.35260753,2013.4,2013.2,19.46707]
[1743033244486,3.35260753,2013.3,2013.2,24.98409]
[1743033244690,3.35260753,2013.3,2013.2,20.01702]
[1743033245181,3.35260753,2013.4,2013.2,24.98406]
[1743033245585,3.35260753,2013.4,2013.2,20.01702]
[1743033245791,3.35260753,2013.4,2013.2,24.98413]
[1743033246491,3.35260753,2013.3,2013.2,20.01702]
[1743033246820,3.35260753,2013.3,2013.2,14.5]
[1743033256201,3.35260753,2013.3,2013.2,19.46721]
[1743033256697,3.35260753,2013.3,2013.2,14.5]
[1743033258001,3.35260753,2013.3,2013.2,19.46721]
[1743033258173,3.35260753,2013.3,2013.2,14.5]
[1743033259102,3.35260753,2013.3,2013.2,19.46721]
[1743033260708,3.35260753,2013.3,2013.2,14.5]
[1743033260878,2.00539114,2013.3,2013.2,14.5]
[1743033262506,2.00539114,2013.3,2013.2,19.46721]
[1743033263074,2.00539114,2013.5,2013.4,4.96662]
[1743033264880,3.34177073,2013.5,2013.4,4.96662]
[1743033265082,3.34177073,2013.5,2013.3,19.46694]
[1743033268593,3.34177073,2013.4,2013.3,5.51694]
[1743033269621,3.34177073,2013.4,2013.3,0.55]
[1743033271086,4.96627,2013.6,2013.3,0.55]
[1743033271284,3.34177073,2013.4,2013.3,0.55]
[1743033271836,3.34177073,2013.4,2013.3,5.51696]
[1743033272318,3.34177073,2013.4,2013.3,0.55]
[1743033272692,7.96599,2013.7,2013.3,5.51696]
[1743033272893,3.34177073,2013.4,2013.3,5.51696]
[1743033275016,9.40177073,2013.9,2013.6,4.96599]
[1743033275217,9.40177073,2013.9,2013.7,4.96592]
[1743033275894,3.34177073,2013.8,2013.7,4.96592]
[1743033276794,6.06,2013.9,2013.8,4.96573]
[1743033277093,3.34177073,2013.9,2013.8,7.490505]
[1743033279623,3.34177073,2013.9,2013.8,4.96573]
[1743033282227,0.7807,2014.0,2013.9,4.96548]
[1743033282395,4.12247073,2014.0,2013.9,4.96548]
[1743033284226,4.12247073,2014.0,2013.8,4.96558]
[1743033284427,4.12247073,2014.0,2013.5,0.36949489]
[1743033284428,3.34177073,2013.9,2013.4,0.7715]
[1743033284638,3.34177073,2013.5,2013.4,4.96665]
[1743033284926,3.34177073,2013.5,2013.4,20.01665]
[1743033285230,3.34177073,2013.6,2013.5,4.96642]
[1743033287032,2.00483223,2013.6,2013.5,4.96642]
[1743033288431,2.00483223,2013.6,2013.5,14.5]
[1743033289204,2.00483223,2013.6,2013.5,21.94793]
[1743033293537,0.7699,2014.2,2013.5,23.25533]
[1743033293724,2.00483223,2013.9,2013.8,4.96563]
[1743033294428,2.00483223,2013.9,2013.8,19.46563]
[1743033294826,2.00483223,2013.9,2013.8,4.96563]
[1743033296057,0.7861,2014.5,2013.8,3.814659]
[1743033296219,2.00483223,2014.4,2014.1,5.51487]
[1743033296424,0.7861,2014.5,2014.2,4.96467]
[1743033296718,2.00483223,2014.3,2014.2,5.51467]
[1743033298942,3.33890128,2014.4,2014.2,5.51467]
[1743033300322,3.33890128,2014.4,2014.2,0.55]
[1743033300742,3.33890128,2014.4,2014.2,5.51472]
[1743033301747,9.92775,2014.6,2014.3,0.8328]
[1743033301918,3.33890128,2014.5,2014.2,5.51467]
[1743033302118,3.33890128,2014.5,2014.2,10.47924]
[1743033302615,3.33890128,2014.5,2014.2,5.51457]
[1743033302815,3.33890128,2014.5,2014.2,10.47923]
[1743033303342,3.33890128,2014.5,2014.3,4.96449]
[1743033303543,0.1174854,2014.7,2014.3,0.55]
[1743033303758,3.45638668,2014.7,2014.5,4.9638]
[1743033304117,3.45638668,2014.7,2014.4,5.74382]
[1743033304118,0.7504,2014.4,2014.0,5.97234914]
[1743033304339,3.33890128,2014.2,2014.0,10.93743914]
[1743033304648,3.33890128,2014.4,2014.2,0.55]
[1743033305220,3.33890128,2014.4,2014.2,5.51466]
[1743033305421,3.33890128,2014.4,2014.2,10.47928]
[1743033305623,3.33890128,2014.4,2014.2,5.51462]
[1743033306338,3.33890128,2014.4,2014.2,5.5146]
[1743033307255,3.33890128,2014.4,2014.2,0.55]
[1743033307757,8.30324128,2014.4,2014.2,0.55]
[1743033307926,3.33890128,2014.4,2014.2,5.51472]
[1743033308641,3.33890128,2014.4,2014.2,0.55]
[1743033308946,3.33890128,2014.3,2014.2,0.55]
[1743033309659,3.33890128,2014.3,2014.0,4.96516]
[1743033309836,3.33890128,2014.1,2014.0,5.51516]
[1743033310031,3.33890128,2014.1,2014.0,21.8658009]
[1743033311146,3.33890128,2014.1,2014.0,5.51516]
[1743033311529,4.16750128,2014.3,2014.1,4.96495]
[1743033311949,8.30340128,2014.3,2014.0,20.01516]
[1743033312655,13.26811128,2014.3,2014.0,15.05]
[1743033312861,3.33890128,2014.1,2014.0,15.05]
[1743033313060,3.33890128,2014.1,2014.0,18.44735021]
[1743033313758,3.33890128,2014.1,2013.5,7.44789]
[1743033313759,4.96582,2013.8,2013.5,13.01784]
[1743033313939,3.33890128,2013.7,2013.5,13.01784]
[1743033314140,3.33890128,2013.7,2013.6,15.05]
[1743033314543,3.33890128,2013.7,2013.6,14.5]
[1743033315932,8.30474128,2013.8,2013.6,14.5]
[1743033319352,4.96598,2013.7,2013.6,14.5]
[1743033319559,3.33890128,2013.7,2013.6,14.5]
[1743033321766,8.30488128,2013.7,2013.6,14.5]
[1743033322750,3.33890128,2013.7,2013.6,14.5]
[1743033323569,8.30474128,2013.8,2013.6,14.5]
[1743033324963,3.33890128,2013.7,2013.5,0.55]
[1743033325165,3.33890128,2013.6,2013.5,0.55]
[1743033325364,3.33890128,2013.6,2013.4,0.55]
[1743033325570,3.33890128,2013.6,2013.4,5.51661]
[1743033325940,3.33890128,2013.7,2013.4,10.4832]
[1743033326562,3.33890128,2013.7,2013.4,5.51659]
[1743033326765,3.33890128,2013.7,2013.4,6.43556938]
[1743033327372,3.33890128,2013.7,2013.5,4.96642]
[1743033327673,3.33890128,2013.7,2013.4,6.43556938]
[1743033328945,3.33890128,2013.7,2013.4,11.40215938]
[1743033329941,3.33890128,2013.7,2013.4,5.51656]
[1743033330147,8.30498128,2013.7,2013.4,5.51656]
[1743033330664,3.33890128,2013.6,2013.4,5.51656]
[1743033332876,3.33890128,2013.6,2013.4,10.48316]
[1743033333078,3.33890128,2013.6,2013.4,5.51656]
[1743033333971,3.33890128,2013.6,2013.4,0.55]
[1743033334178,3.33890128,2013.6,2013.4,5.51663]
[1743033334847,3.33890128,2013.6,2013.5,15.05]
[1743033335155,0.8075,2013.9,2013.6,0.55]
[1743033335346,6.06,2014.3,2013.8,4.96556]
[1743033335347,4.13010128,2014.1,2013.8,4.96556]
[1743033335548,3.33890128,2013.9,2013.6,5.77281]
[1743033335760,3.33890128,2013.8,2013.7,14.5]
[1743033336276,4.96636,2013.6,2013.4,5.5627]
[1743033336478,3.33890128,2013.5,2013.4,5.306]
[1743033337581,3.33890128,2013.6,2013.4,5.306]
[1743033337745,8.30493128,2013.7,2013.4,5.306]
[1743033337949,8.30493128,2013.7,2013.4,10.27263]
[1743033338648,8.30493128,2013.7,2013.5,14.5]
[1743033339285,3.33890128,2013.7,2013.5,14.5]
[1743033340292,3.33890128,2013.7,2013.5,19.46646]
[1743033340497,3.33890128,2013.7,2013.5,23.34828078]
[1743033340782,3.33890128,2013.7,2013.5,20.27696]
[1743033343183,3.33890128,2013.7,2013.5,19.46646]
[1743033346363,3.33890128,2013.7,2013.5,4.96646]
[1743033346559,3.33890128,2013.7,2013.4,10.27257]
[1743033346755,11.02509,2014.1,2013.7,4.96577]
[1743033346987,3.33890128,2014.0,2013.7,4.96577]
[1743033347562,3.33890128,2014.0,2013.7,9.93161]
[1743033347785,3.33890128,2014.0,2013.8,9.93128]
[1743033347971,3.33890128,2014.0,2013.8,4.9656]
[1743033348376,3.33890128,2014.0,2013.7,4.96581]
[1743033349057,3.33890128,2013.8,2013.6,0.0496567]
[1743033349403,3.33890128,2013.8,2013.4,4.96671]
[1743033349581,8.30464128,2013.8,2013.5,4.96639]
[1743033349776,3.33890128,2013.6,2013.4,4.96671]
[1743033349971,3.33890128,2013.6,2013.4,0.55]
[1743033350173,3.33890128,2013.6,2013.3,5.94101781]
[1743033350361,3.33890128,2013.4,2013.3,5.94101781]
[1743033350562,3.33890128,2013.6,2013.4,4.96656]
[1743033351296,3.33890128,2013.6,2013.5,4.96647]
[1743033351599,3.33890128,2013.6,2013.5,5.76377]
[1743033351765,3.33890128,2013.6,2013.5,6.93422078]
[1743033353190,3.33890128,2013.6,2013.5,21.43422078]
[1743033357398,3.33890128,2013.6,2013.5,6.93422078]
[1743033357703,3.33890128,2013.6,2013.5,6.13692078]
[1743033358401,3.33890128,2013.6,2013.4,20.27393]
[1743033358773,3.33890128,2013.6,2013.3,5.94111781]
[1743033358968,3.33890128,2013.4,2013.3,0.97417781]
[1743033359409,3.33890128,2013.4,2013.3,5.94113781]
[1743033359605,3.33890128,2013.4,2013.3,6.74413781]
[1743033359901,3.33890128,2013.4,2013.3,9.84186959]
[1743033361400,3.33890128,2013.4,2013.2,9.73311]
[1743033362098,3.33890128,2013.4,2013.2,4.766]
[1743033362693,3.33890128,2013.4,2013.2,19.266]
[1743033363206,3.33890128,2013.4,2013.2,24.2332]
[1743033363501,3.33890128,2013.4,2013.2,19.266]
[1743033365230,3.33890128,2013.4,2013.2,24.23319]
[1743033365737,3.33890128,2013.3,2013.2,24.23319]
[1743033369429,3.33890128,2013.3,2013.2,28.15795442]
[1743033371309,3.33890128,2013.3,2013.2,24.78319]
[1743033371821,3.33890128,2013.3,2013.2,24.23319]
[1743033371992,3.33890128,2013.3,2013.2,19.266]
[1743033372193,3.33890128,2013.3,2013.2,24.23321]
[1743033374023,3.33890128,2013.3,2013.2,19.266]
[1743033374438,3.33890128,2013.3,2013.2,24.23321]
[1743033375125,3.33890128,2013.3,2013.2,19.266]
[1743033378526,4.12080128,2013.4,2013.2,19.266]
[1743033379197,3.33890128,2013.4,2013.2,24.2332]
[1743033379398,3.33890128,2013.4,2013.2,27.55296542]
[1743033385553,3.33890128,2013.5,2013.3,0.55]
[1743033385710,4.96601,2013.7,2013.4,4.96668]
[1743033385711,8.30491128,2013.7,2013.4,4.96668]
[1743033386638,3.33890128,2013.7,2013.4,4.96668]
[1743033386951,8.30498128,2013.7,2013.4,4.96668]
[1743033387921,8.30498128,2013.7,2013.4,4.95732981]
[1743033388120,3.33890128,2013.7,2013.4,8.34640533]
[1743033389314,3.33890128,2013.7,2013.4,4.95732981]
[1743033390029,8.30490128,2013.7,2013.4,4.95732981]
[1743033390339,3.33890128,2013.7,2013.4,4.95732981]
[1743033390540,8.30495128,2013.7,2013.4,4.95732981]
[1743033390737,3.33890128,2013.7,2013.4,4.95732981]
[1743033391208,8.30491128,2013.7,2013.4,8.01442579]
[1743033392740,8.30491128,2013.7,2013.4,22.51442579]
[1743033393337,8.30491128,2013.7,2013.4,19.45732981]
[1743033393637,3.33890128,2013.5,2013.4,19.45732981]
[1743033393828,3.33890128,2013.5,2013.3,5.51693]
[1743033394033,3.33890128,2013.5,2013.2,9.73311]
[1743033394213,4.15620128,2013.5,2013.2,9.73311]
[1743033394414,4.15620128,2013.5,2013.2,29.20018]
[1743033394617,4.15620128,2013.5,2013.2,24.23307]
[1743033394943,3.33890128,2013.4,2013.2,24.23307]
[1743033395142,3.33890128,2013.4,2013.2,27.68940242]
[1743033395655,3.33890128,2013.4,2013.2,32.65647242]
[1743033395816,3.33890128,2013.4,2013.2,27.68940242]
[1743033396139,3.33890128,2013.4,2013.2,32.65649242]
[1743033396343,3.33890128,2013.4,2013.3,4.96696]
[1743033396546,3.33890128,2013.4,2013.3,8.23259624]
[1743033397951,3.33890128,2013.4,2013.3,3.26563624]
[1743033399252,3.33890128,2013.4,2013.2,14.70016]
[1743033399415,3.33890128,2013.4,2013.3,14.5]
[1743033399618,3.33890128,2013.4,2013.3,19.46696]
[1743033399820,8.30562128,2013.4,2013.1,4.705]
[1743033400041,3.33890128,2013.2,2013.1,4.705]
[1743033400246,3.33890128,2013.2,2013.1,6.65029142]
[1743033400448,4.96757,2013.1,2012.6,15.4108]
[1743033400744,3.33890128,2012.8,2012.7,4.96845]
[1743033400960,3.33890128,2012.8,2012.7,20.01845]
[1743033401625,3.33890128,2012.8,2012.7,23.064509]
[1743033404664,3.33890128,2012.8,2012.7,18.096059]
[1743033405036,3.33890128,2012.8,2012.7,23.064509]
[1743033406361,3.33890128,2012.8,2012.7,14.5]
[1743033406535,9.07660128,2012.8,2012.4,4.96914]
[1743033406735,3.33890128,2012.6,2012.5,0.55]
[1743033406934,3.33890128,2012.6,2012.5,15.05]
[1743033409353,3.33890128,2012.6,2012.5,17.72450408]
[1743033410065,3.33890128,2012.7,2012.5,17.72450408]
[1743033412785,3.33890128,2012.6,2012.5,17.72450408]
[1743033413463,3.33890128,2012.6,2012.5,15.05]
[1743033415167,3.33890128,2012.7,2012.5,15.05]
[1743033415565,5.75985,2013.0,2012.5,15.05]
[1743033415764,4.13100128,2013.0,2012.7,4.96836]
[1743033416171,3.33890128,2012.9,2012.7,4.96836]
[1743033416471,3.33890128,2012.9,2012.8,14.5]
[1743033417078,8.30685128,2012.9,2012.8,14.5]
[1743033417285,8.30685128,2012.9,2012.6,0.8228]
[1743033417681,8.30685128,2012.9,2012.7,14.5]
[1743033418305,8.30685128,2012.9,2012.6,5.79148]
[1743033418513,8.30685128,2012.9,2012.6,7.02203808]
[1743033418903,8.30685128,2012.9,2012.6,2.05335808]
[1743033419518,8.30685128,2012.9,2012.6,7.02202808]
[1743033419688,3.33890128,2012.8,2012.6,2.05335808]
[1743033419888,3.33890128,2012.7,2012.5,0.55]
[1743033420416,3.33890128,2012.6,2012.5,0.55]
[1743033421076,9.06675128,2012.7,2012.5,0.55]
[1743033421607,4.96869,2012.6,2012.4,0.55]
[1743033421915,8.30792128,2012.5,2012.2,10.47475]
[1743033422072,3.33890128,2012.5,2012.2,11.59594158]
[1743033422413,13.27644128,2012.6,2012.2,11.59585158]
[1743033422716,3.33890128,2012.5,2012.2,6.89485158]
[1743033423290,3.33890128,2012.5,2012.2,11.86441158]
[1743033423604,13.27643128,2012.6,2012.2,7.8991873]
[1743033424104,8.30759128,2012.6,2012.2,12.8687273]
[1743033424404,8.30759128,2012.6,2012.2,7.8991673]
[1743033424606,4.96869,2012.6,2012.3,4.96932]
[1743033425499,9.93754,2012.6,2012.2,7.8991673]
[1743033425675,4.96869,2012.6,2012.3,4.96943]
[1743033426481,4.96869,2012.6,2012.2,7.8991673]
[1743033426899,4.96869,2012.6,2012.3,0.87124607]
[1743033427097,4.96869,2012.6,2012.3,5.84064607]
[1743033427813,8.30759128,2012.6,2012.3,5.84064607]
[1743033427992,13.27648128,2012.6,2012.3,0.87124607]
[1743033428678,8.30759128,2012.6,2012.3,0.87124607]
[1743033429109,13.27643128,2012.6,2012.3,0.87124607]
[1743033429627,8.30759128,2012.6,2012.3,0.87124607]
[1743033429784,8.30759128,2012.6,2012.3,5.84058607]
[1743033430917,13.27644128,2012.6,2012.3,0.87124607]
[1743033431122,3.33890128,2012.5,2012.2,7.8991473]
[1743033431281,3.33890128,2012.4,2012.2,1.00433572]
[1743033431981,9.07619128,2012.4,2012.2,1.00433572]
[1743033432505,4.10690128,2012.4,2012.2,1.00433572]
[1743033433114,3.33890128,2012.4,2012.2,4.96967]
[1743033433411,8.30786128,2012.5,2012.2,4.96967]
[1743033433606,13.27699128,2012.5,2012.2,0.55]
[1743033433806,8.30786128,2012.5,2012.2,0.55]
[1743033434412,13.27702128,2012.5,2012.2,0.55]
[1743033434583,8.30786128,2012.5,2012.2,0.55]
[1743033435086,5.76583,2012.1,2012.0,0.73866443]
[1743033435331,9.10473128,2012.1,2012.0,0.73866443]
[1743033436124,4.97058,2011.9,2011.6,1.02030248]
[1743033436280,3.33890128,2011.8,2011.6,1.02030248]
[1743033436727,8.30948128,2011.9,2011.6,1.02030248]
[1743033437325,4.97058,2011.9,2011.6,2.17158773]
[1743033438010,3.33890128,2012.0,2011.7,0.55]
[1743033438217,9.10488128,2012.1,2011.7,5.52084]
[1743033438420,14.07492128,2012.1,2011.7,5.52084]
[1743033439080,4.97022,2012.0,2011.7,5.52084]
[1743033439513,8.30912128,2012.0,2011.7,5.52084]
[1743033440292,13.27949128,2012.0,2011.7,0.55]
[1743033440488,8.30912128,2012.0,2011.7,0.55]
[1743033441107,9.10476128,2012.1,2011.7,5.52087]
[1743033441406,4.97019,2012.0,2011.7,5.52087]
[1743033441608,8.30909128,2012.0,2011.7,5.52087]
[1743033443619,8.30909128,2012.0,2011.7,0.55]
[1743033445113,8.30909128,2012.0,2011.7,5.52091]
[1743033446116,4.97019,2012.0,2011.7,5.52091]